fUSD/lending_fUSD_20260612
["ID","MTS","AMOUNT","RATE_DAILY","PERIOD"]
[424849923,1781205044000,-500.0,0.00013698,2]
[424849924,1781205044000,-500.0,0.00013698,2]
[424849925,1781205044000,-500.0,0.00013698,2]
[424849927,1781205044000,-500.0,0.00013698,2]
[424849932,1781205044000,-500.0,0.00013698,2]
[424849909,1781205044000,-500.0,0.00013698,2]
[424849933,1781205044000,-500.0,0.00013698,2]
[424849920,1781205044000,-500.0,0.00013698,2]
[424849913,1781205044000,-500.0,0.00013698,2]
[424849903,1781205044000,-500.0,0.00013698,2]
[424849910,1781205044000,-500.0,0.00013698,2]
[424849928,1781205044000,-348.71008799,0.00013698,2]
[424849896,1781205044000,-500.0,0.00013698,2]
[424849897,1781205044000,-500.0,0.00013698,2]
[424849901,1781205044000,-500.0,0.00013698,2]
[424849900,1781205044000,-500.0,0.00013698,2]
[424849902,1781205044000,-500.0,0.00013698,2]
[424849899,1781205044000,-500.0,0.00013698,2]
[424849904,1781205044000,-500.0,0.00013698,2]
[424849905,1781205044000,-500.0,0.00013698,2]
[424849898,1781205044000,-500.0,0.00013698,2]
[424849906,1781205044000,-500.0,0.00013698,2]
[424849907,1781205044000,-500.0,0.00013698,2]
[424849908,1781205044000,-500.0,0.00013698,2]
[424849914,1781205044000,-500.0,0.00013698,2]
[424849915,1781205044000,-500.0,0.00013698,2]
[424849912,1781205044000,-500.0,0.00013698,2]
[424849931,1781205044000,-500.0,0.00013698,2]
[424849930,1781205044000,-500.0,0.00013698,2]
[424849935,1781205044000,-500.0,0.00013698,2]
[424849955,1781205044000,-500.0,0.00013698,2]
[424849953,1781205044000,-500.0,0.00013698,2]
[424849950,1781205044000,-500.0,0.00013698,2]
[424849959,1781205044000,-500.0,0.00013698,2]
[424849958,1781205044000,-500.0,0.00013698,2]
[424849960,1781205044000,-500.0,0.00013698,2]
[424849962,1781205044000,-500.0,0.00013698,2]
[424849957,1781205044000,-500.0,0.00013698,2]
[424849964,1781205044000,-500.0,0.00013698,2]
[424849965,1781205044000,-500.0,0.00013698,2]
[424849970,1781205044000,-500.0,0.00013698,2]
[424849967,1781205044000,-1404.7295514,0.00013698,2]
[424849966,1781205044000,-457.12873569,0.00013698,2]
[424849969,1781205044000,-500.0,0.00013698,2]
[424849929,1781205044000,-500.0,0.00013698,2]
[424849968,1781205044000,-500.0,0.00013698,2]
[424849963,1781205044000,-500.0,0.00013698,2]
[424849948,1781205044000,-500.0,0.00013698,2]
[424849961,1781205044000,-275.16598363,0.00013698,2]
[424849956,1781205044000,-500.0,0.00013698,2]
[424849934,1781205044000,-500.0,0.00013698,2]
[424849952,1781205044000,-500.0,0.00013698,2]
[424849937,1781205044000,-500.0,0.00013698,2]
[424849936,1781205044000,-500.0,0.00013698,2]
[424849940,1781205044000,-500.0,0.00013698,2]
[424849939,1781205044000,-500.0,0.00013698,2]
[424849941,1781205044000,-500.0,0.00013698,2]
[424849943,1781205044000,-500.0,0.00013698,2]
[424849938,1781205044000,-500.0,0.00013698,2]
[424849944,1781205044000,-500.0,0.00013698,2]
[424849945,1781205044000,-500.0,0.00013698,2]
[424849946,1781205044000,-500.0,0.00013698,2]
[424849954,1781205044000,-500.0,0.00013698,2]
[424849947,1781205044000,-532.44926437,0.00013698,2]
[424849951,1781205044000,-500.0,0.00013698,2]
[424849942,1781205044000,-500.0,0.00013698,2]
[424849949,1781205044000,-500.0,0.00013698,2]
[424850008,1781205045000,-500.0,0.00013699,2]
[424850007,1781205045000,-500.0,0.00013699,2]
[424850001,1781205045000,-500.0,0.00013699,2]
[424850002,1781205045000,-500.0,0.00013699,2]
[424850022,1781205045000,-500.0,0.00013699,2]
[424850000,1781205045000,-419.14888052,0.00013699,2]
[424850004,1781205045000,-500.0,0.00013699,2]
[424849999,1781205045000,-500.0,0.00013699,2]
[424850009,1781205045000,-249.27512205,0.00013699,2]
[424850006,1781205045000,-500.0,0.00013699,2]
[424850005,1781205045000,-500.0,0.00013699,2]
[424850013,1781205045000,-500.0,0.00013699,2]
[424850016,1781205045000,-500.0,0.00013699,2]
[424850012,1781205045000,-500.0,0.00013699,2]
[424850010,1781205045000,-500.0,0.00013699,2]
[424850018,1781205045000,-500.0,0.00013699,2]
[424850015,1781205045000,-500.0,0.00013699,2]
[424850014,1781205045000,-500.0,0.00013699,2]
[424850017,1781205045000,-500.0,0.00013699,2]
[424850020,1781205045000,-500.0,0.00013699,2]
[424850019,1781205045000,-500.0,0.00013699,2]
[424850021,1781205045000,-500.0,0.00013699,2]
[424850025,1781205045000,-500.0,0.00013699,2]
[424850023,1781205045000,-500.0,0.00013699,2]
[424849998,1781205045000,-500.0,0.00013699,2]
[424850011,1781205045000,-500.0,0.00013699,2]
[424850003,1781205045000,-500.0,0.00013699,2]
[424849982,1781205045000,-2500.0,0.00013699,2]
[424849996,1781205045000,-179.91473025,0.00013699,2]
[424850024,1781205045000,-500.0,0.00013699,2]
[424849972,1781205045000,-500.0,0.00013698,2]
[424849971,1781205045000,-500.0,0.00013698,2]
[424849974,1781205045000,-500.0,0.00013698,2]
[424849973,1781205045000,-500.0,0.00013698,2]
[424849975,1781205045000,-171.51496798,0.00013698,2]
[424849980,1781205045000,-500.0,0.00013698,2]
[424849981,1781205045000,-200.0,0.00013699,2]
[424849976,1781205045000,-356.80515996,0.00013698,2]
[424849983,1781205045000,-174.92,0.00013699,2]
[424849977,1781205045000,-500.0,0.00013698,2]
[424849978,1781205045000,-500.0,0.00013698,2]
[424849979,1781205045000,-500.0,0.00013698,2]
[424849984,1781205045000,-308.7,0.00013699,2]
[424849985,1781205045000,-257.25,0.00013699,2]
[424849986,1781205045000,-214.37,0.00013699,2]
[424849987,1781205045000,-178.65,0.00013699,2]
[424849992,1781205045000,-600.11152647,0.00013699,2]
[424849994,1781205045000,-281.05235273,0.00013699,2]
[424849991,1781205045000,-500.0,0.00013699,2]
[424849989,1781205045000,-500.0,0.00013699,2]
[424849993,1781205045000,-500.0,0.00013699,2]
[424849988,1781205045000,-893.25,0.00013699,2]
[424849990,1781205045000,-500.0,0.00013699,2]
[424849995,1781205045000,-342.78372235,0.00013699,2]
[424849997,1781205045000,-294.20819912,0.00013699,2]
[424850027,1781205045000,-500.0,0.00013699,2]
[424850059,1781205045000,-306.24,0.00013838,2]
[424850026,1781205045000,-500.0,0.00013699,2]
[424850063,1781205045000,-150.0,0.00013862,2]
[424850060,1781205045000,-150.0,0.0001384,2]
[424850062,1781205045000,-823.0,0.00013862,2]
[424850061,1781205045000,-306.24,0.00013857,2]
[424850064,1781205045000,-150.0,0.00013862,2]
[424850067,1781205045000,-201.120391,0.00013879,2]
[424850066,1781205045000,-371.017178,0.00013877,2]
[424850070,1781205045000,-306.24,0.00013913,2]
[424850065,1781205045000,-306.24,0.00013876,2]
[424850068,1781205045000,-150.0,0.00013884,2]
[424850072,1781205045000,-306.24,0.00013931,2]
[424850074,1781205045000,-259.086004,0.00013948,2]
[424850071,1781205045000,-150.0,0.00013928,2]
[424850073,1781205045000,-150.0,0.00013937,2]
[424850075,1781205045000,-306.24,0.00013949,2]
[424850076,1781205045000,-15895.96642951,0.00013953,2]
[424850078,1781205045000,-150.0,0.00013973,2]
[424850079,1781205045000,-306.24,0.00013984,2]
[424850077,1781205045000,-306.24,0.00013966,2]
[424850081,1781205045000,-751.05717085,0.0001399,2]
[424850080,1781205045000,-150.0,0.00013987,2]
[424850083,1781205045000,-2000.0,0.00014004,2]
[424850084,1781205045000,-150.0,0.00014017,2]
[424850082,1781205045000,-306.24,0.00014001,2]
[424850028,1781205045000,-500.0,0.00013699,2]
[424850057,1781205045000,-306.24,0.00013818,2]
[424850058,1781205045000,-150.0,0.00013821,2]
[424850069,1781205045000,-306.24,0.00013895,2]
[424850055,1781205045000,-10097.90193482,0.00013797,2]
[424850029,1781205045000,-500.0,0.00013699,2]
[424850054,1781205045000,-150.0,0.00013796,2]
[424850030,1781205045000,-500.0,0.00013699,2]
[424850031,1781205045000,-500.0,0.00013699,2]
[424850032,1781205045000,-500.0,0.00013699,2]
[424850036,1781205045000,-500.0,0.00013699,2]
[424850033,1781205045000,-500.0,0.00013699,2]
[424850034,1781205045000,-500.0,0.00013699,2]
[424850037,1781205045000,-500.0,0.00013699,2]
[424850039,1781205045000,-150.0,0.000137,2]
[424850038,1781205045000,-150.0,0.000137,2]
[424850041,1781205045000,-150.0,0.000137,2]
[424850040,1781205045000,-150.0,0.000137,2]
[424850035,1781205045000,-500.0,0.00013699,2]
[424850053,1781205045000,-2000.0,0.00013788,2]
[424850056,1781205045000,-306.24,0.00013798,2]
[424850042,1781205045000,-278.60891467,0.000137,2]
[424850052,1781205045000,-49983.54314385,0.00013788,2]
[424850049,1781205045000,-306.24,0.00013757,2]
[424850051,1781205045000,-150.0,0.00013787,2]
[424850048,1781205045000,-150.0,0.00013752,2]
[424850047,1781205045000,-433.0,0.00013743,2]
[424850050,1781205045000,-306.24,0.00013778,2]
[424850046,1781205045000,-306.24,0.00013736,2]
[424850044,1781205045000,-150.0,0.00013708,2]
[424850043,1781205045000,-653.08,0.000137,2]
[424850045,1781205045000,-306.24,0.00013715,2]
[424850115,1781205046000,-150.0,0.00014325,2]
[424850126,1781205046000,-500.0,0.00014439,2]
[424850124,1781205046000,-557.16080543,0.00014439,2]
[424850123,1781205046000,-1400.52537883,0.00014439,2]
[424850120,1781205046000,-150.0,0.00014424,2]
[424850121,1781205046000,-15895.96642951,0.00014427,2]
[424850116,1781205046000,-150.0,0.00014369,2]
[424850118,1781205046000,-150.0,0.00014413,2]
[424850119,1781205046000,-150.0,0.00014424,2]
[424850114,1781205046000,-150.0,0.0001432,2]
[424850131,1781205046000,-150.0,0.00014501,2]
[424850117,1781205046000,-150.0,0.00014387,2]
[424850125,1781205046000,-651.56,0.00014439,2]
[424850140,1781205046000,-150.0,0.00014612,2]
[424850128,1781205046000,-188.14874168,0.00014461,10]
[424850129,1781205046000,-1830.04177367,0.00014482,2]
[424850132,1781205046000,-234.25497419,0.00014512,2]
[424850127,1781205046000,-150.0,0.00014457,2]
[424850130,1781205046000,-150.0,0.00014487,2]
[424850134,1781205046000,-49983.54314385,0.00014522,2]
[424850135,1781205046000,-10097.90193482,0.00014532,2]
[424850144,1781205046000,-150.0,0.00014678,2]
[424850145,1781205046000,-150.0,0.00014687,2]
[424850136,1781205046000,-150.0,0.00014537,2]
[424850143,1781205046000,-150.0,0.00014653,2]
[424850122,1781205046000,-1758.20916563,0.00014439,2]
[424850133,1781205046000,-529.77545111,0.00014521,2]
[424850112,1781205046000,-150.0,0.00014281,2]
[424850085,1781205046000,-306.24,0.00014018,2]
[424850110,1781205046000,-150.0,0.00014237,2]
[424850142,1781205046000,-1452.04,0.00014648,2]
[424850087,1781205046000,-150.0,0.0001405,2]
[424850086,1781205046000,-306.24,0.00014034,2]
[424850088,1781205046000,-150.0,0.0001405,2]
[424850090,1781205046000,-306.29,0.00014051,2]
[424850097,1781205046000,-251.671526,0.00014095,2]
[424850091,1781205046000,-277.351747,0.00014055,2]
[424850093,1781205046000,-1830.04177367,0.00014064,2]
[424850092,1781205046000,-150.0,0.00014061,2]
[424850098,1781205046000,-150.0,0.00014105,2]
[424850094,1781205046000,-153.52,0.0001407,2]
[424850089,1781205046000,-306.24,0.00014051,2]
[424850113,1781205046000,-1404.72955139,0.00014299,2]
[424850095,1781205046000,-150.0,0.00014087,2]
[424850099,1781205046000,-268.888565,0.00014125,2]
[424850100,1781205046000,-150.0,0.00014149,2]
[424850101,1781205046000,-150.0,0.00014154,2]
[424850105,1781205046000,-150.0,0.00014237,2]
[424850104,1781205046000,-150.0,0.00014193,2]
[424850103,1781205046000,-10097.90193482,0.00014164,2]
[424850108,1781205046000,-150.0,0.00014237,2]
[424850106,1781205046000,-150.0,0.00014237,2]
[424850109,1781205046000,-150.0,0.00014237,2]
[424850107,1781205046000,-150.0,0.00014237,2]
[424850102,1781205046000,-49983.54314385,0.00014155,2]
[424850111,1781205046000,-150.0,0.00014237,2]
[424850096,1781205046000,-407.165038,0.00014095,2]
[424850137,1781205046000,-150.0,0.00014546,2]
[424850185,1781205046000,-579.83,0.00014899,2]
[424850139,1781205046000,-150.0,0.00014612,2]
[424850177,1781205046000,-1055.86,0.00014899,2]
[424850180,1781205046000,-613.33,0.00014899,2]
[424850178,1781205046000,-1055.86,0.00014899,2]
[424850179,1781205046000,-1055.87093858,0.00014899,2]
[424850174,1781205046000,-961.63626089,0.00014899,2]
[424850175,1781205046000,-1055.86,0.00014899,2]
[424850181,1781205046000,-613.33,0.00014899,2]
[424850182,1781205046000,-613.33,0.00014899,2]
[424850184,1781205046000,-613.56184904,0.00014899,2]
[424850183,1781205046000,-613.33,0.00014899,2]
[424850200,1781205046000,-500.0,0.00014899,2]
[424850186,1781205046000,-579.83,0.00014899,2]
[424850176,1781205046000,-1055.86,0.00014899,2]
[424850190,1781205046000,-807.75,0.00014899,2]
[424850187,1781205046000,-579.83,0.00014899,2]
[424850188,1781205046000,-579.83,0.00014899,2]
[424850191,1781205046000,-807.75,0.00014899,2]
[424850192,1781205046000,-807.75,0.00014899,2]
[424850193,1781205046000,-807.75,0.00014899,2]
[424850194,1781205046000,-807.91379386,0.00014899,2]
[424850205,1781205046000,-500.0,0.00014899,2]
[424850207,1781205046000,-500.0,0.00014899,2]
[424850195,1781205046000,-542.16653509,0.00014899,2]
[424850198,1781205046000,-500.0,0.00014899,2]
[424850196,1781205046000,-500.0,0.00014899,2]
[424850138,1781205046000,-150.0,0.0001459,2]
[424850189,1781205046000,-580.06141108,0.00014899,2]
[424850172,1781205046000,-961.55,0.00014899,2]
[424850203,1781205046000,-500.0,0.00014899,2]
[424850171,1781205046000,-961.55,0.00014899,2]
[424850173,1781205046000,-961.55,0.00014899,2]
[424850141,1781205046000,-150.0,0.00014634,2]
[424850146,1781205046000,-2500.0,0.000147,5]
[424850148,1781205046000,-1000.0,0.00014751,10]
[424850149,1781205046000,-150.0,0.00014766,2]
[424850150,1781205046000,-2727.77,0.00014775,2]
[424850151,1781205046000,-150.0,0.00014799,2]
[424850152,1781205046000,-150.0,0.00014799,2]
[424850154,1781205046000,-150.0,0.0001481,2]
[424850153,1781205046000,-2500.0,0.000148,5]
[424850156,1781205046000,-150.0,0.00014836,2]
[424850155,1781205046000,-150.0,0.0001482,2]
[424850157,1781205046000,-150.0,0.00014854,2]
[424850147,1781205046000,-150.0,0.00014722,2]
[424850160,1781205046000,-49983.54314385,0.00014889,2]
[424850158,1781205046000,-5800.0,0.00014874,2]
[424850170,1781205046000,-961.55,0.00014899,2]
[424850164,1781205046000,-1058.4392676,0.00014899,5]
[424850167,1781205046000,-727.72,0.00014899,2]
[424850166,1781205046000,-727.72,0.00014899,2]
[424850169,1781205046000,-727.72,0.00014899,2]
[424850163,1781205046000,-1066.81128949,0.00014899,5]
[424850161,1781205046000,-5800.0,0.00014891,2]
[424850162,1781205046000,-150.0,0.00014898,2]
[424850159,1781205046000,-5800.0,0.00014883,2]
[424850168,1781205046000,-727.72,0.00014899,2]
[424850165,1781205046000,-727.72,0.00014899,2]
[424850241,1781205047000,-500.0,0.00014899,2]
[424850247,1781205047000,-500.0,0.00014899,2]
[424850240,1781205047000,-500.0,0.00014899,2]
[424850246,1781205047000,-500.0,0.00014899,2]
[424850245,1781205047000,-500.0,0.00014899,2]
[424850239,1781205047000,-500.0,0.00014899,2]
[424850242,1781205047000,-500.0,0.00014899,2]
[424850244,1781205047000,-500.0,0.00014899,2]
[424850237,1781205047000,-500.0,0.00014899,2]
[424850238,1781205047000,-500.0,0.00014899,2]
[424850243,1781205047000,-500.0,0.00014899,2]
[424850253,1781205047000,-500.0,0.00014899,2]
[424850248,1781205047000,-500.0,0.00014899,2]
[424850251,1781205047000,-500.0,0.00014899,2]
[424850250,1781205047000,-500.0,0.00014899,2]
[424850252,1781205047000,-500.0,0.00014899,2]
[424850255,1781205047000,-500.0,0.00014899,2]
[424850260,1781205047000,-500.0,0.00014899,2]
[424850256,1781205047000,-500.0,0.00014899,2]
[424850258,1781205047000,-500.0,0.00014899,2]
[424850254,1781205047000,-500.0,0.00014899,2]
[424850236,1781205047000,-500.0,0.00014899,2]
[424850257,1781205047000,-500.0,0.00014899,2]
[424850249,1781205047000,-500.0,0.00014899,2]
[424850235,1781205047000,-500.0,0.00014899,2]
[424850219,1781205047000,-500.0,0.00014899,2]
[424850231,1781205047000,-500.0,0.00014899,2]
[424850259,1781205047000,-500.0,0.00014899,2]
[424850211,1781205047000,-500.0,0.00014899,2]
[424850212,1781205047000,-500.0,0.00014899,2]
[424850209,1781205047000,-500.0,0.00014899,2]
[424850213,1781205047000,-500.0,0.00014899,2]
[424850215,1781205047000,-500.0,0.00014899,2]
[424850214,1781205047000,-500.0,0.00014899,2]
[424850217,1781205047000,-500.0,0.00014899,2]
[424850216,1781205047000,-500.0,0.00014899,2]
[424850218,1781205047000,-500.0,0.00014899,2]
[424850220,1781205047000,-500.0,0.00014899,2]
[424850223,1781205047000,-500.0,0.00014899,2]
[424850222,1781205047000,-500.0,0.00014899,2]
[424850221,1781205047000,-500.0,0.00014899,2]
[424850224,1781205047000,-500.0,0.00014899,2]
[424850225,1781205047000,-500.0,0.00014899,2]
[424850226,1781205047000,-500.0,0.00014899,2]
[424850234,1781205047000,-500.0,0.00014899,2]
[424850227,1781205047000,-500.0,0.00014899,2]
[424850228,1781205047000,-500.0,0.00014899,2]
[424850230,1781205047000,-500.0,0.00014899,2]
[424850229,1781205047000,-500.0,0.00014899,2]
[424850232,1781205047000,-500.0,0.00014899,2]
[424850233,1781205047000,-500.0,0.00014899,2]
[424850261,1781205047000,-500.0,0.00014899,2]
[424850273,1781205047000,-500.0,0.00014899,2]
[424850274,1781205047000,-500.0,0.00014899,2]
[424850290,1781205047000,-10097.90193482,0.000149,2]
[424850292,1781205047000,-1830.04177367,0.000149,2]
[424850291,1781205047000,-2500.0,0.000149,5]
[424850294,1781205047000,-15895.96642951,0.000149,2]
[424850293,1781205047000,-1404.72955139,0.000149,2]
[424850297,1781205047000,-291.64660163,0.00014908,2]
[424850298,1781205047000,-150.0,0.00014942,2]
[424850300,1781205047000,-225.43309031,0.00014986,2]
[424850302,1781205047000,-279.86118902,0.00014986,2]
[424850305,1781205047000,-208.1114482,0.00014986,2]
[424850306,1781205047000,-285.87761885,0.00014986,2]
[424850301,1781205047000,-257.36274764,0.00014986,2]
[424850304,1781205047000,-150.75812701,0.00014986,2]
[424850303,1781205047000,-248.12091066,0.00014986,2]
[424850307,1781205047000,-210.0975545,0.00014986,2]
[424850309,1781205047000,-269.96297295,0.00014986,2]
[424850310,1781205047000,-115968.91106027,0.00014989,2]
[424850308,1781205047000,-289.90717118,0.00014986,2]
[424850312,1781205047000,-567.54,0.00014989,2]
[424850311,1781205047000,-500.0,0.00014989,2]
[424850314,1781205047000,-500.0,0.00014989,2]
[424850263,1781205047000,-500.0,0.00014899,2]
[424850313,1781205047000,-500.0,0.00014989,2]
[424850286,1781205047000,-241106.85599919,0.000149,3]
[424850288,1781205047000,-5800.0,0.000149,2]
[424850299,1781205047000,-463.32,0.00014963,2]
[424850289,1781205047000,-2314.07400739,0.000149,2]
[424850296,1781205047000,-242.56011308,0.000149,2]
[424850265,1781205047000,-500.0,0.00014899,2]
[424850266,1781205047000,-500.0,0.00014899,2]
[424850262,1781205047000,-500.0,0.00014899,2]
[424850267,1781205047000,-500.0,0.00014899,2]
[424850272,1781205047000,-500.0,0.00014899,2]
[424850268,1781205047000,-500.0,0.00014899,2]
[424850271,1781205047000,-500.0,0.00014899,2]
[424850269,1781205047000,-500.0,0.00014899,2]
[424850270,1781205047000,-500.0,0.00014899,2]
[424850275,1781205047000,-500.0,0.00014899,2]
[424850277,1781205047000,-500.0,0.00014899,2]
[424850264,1781205047000,-500.0,0.00014899,2]
[424850280,1781205047000,-500.0,0.00014899,2]
[424850276,1781205047000,-500.0,0.00014899,2]
[424850287,1781205047000,-10819.58354044,0.000149,2]
[424850285,1781205047000,-500.0,0.00014899,2]
[424850283,1781205047000,-500.0,0.00014899,2]
[424850284,1781205047000,-500.0,0.00014899,2]
[424850295,1781205047000,-24697.50973962,0.000149,3]
[424850282,1781205047000,-500.0,0.00014899,2]
[424850281,1781205047000,-500.0,0.00014899,2]
[424850279,1781205047000,-500.0,0.00014899,2]
[424850278,1781205047000,-500.0,0.00014899,2]
[424850352,1781205048000,-211.72582,0.00015438,2]
[424850345,1781205048000,-151.0,0.00015068,2]
[424850347,1781205048000,-192.928932,0.00015198,2]
[424850344,1781205048000,-450.27,0.00015068,2]
[424850346,1781205048000,-151.0,0.00015068,2]
[424850351,1781205048000,-200.88,0.00015416,2]
[424850348,1781205048000,-199.5,0.00015219,2]
[424850343,1781205048000,-215.2,0.00015025,2]
[424850349,1781205048000,-1004.0,0.00015242,2]
[424850350,1781205048000,-242.56011306,0.00015281,2]
[424850354,1781205048000,-3000.0,0.00015541,2]
[424850360,1781205048000,-2602.15,0.00015541,2]
[424850353,1781205048000,-729.65644964,0.00015475,2]
[424850361,1781205048000,-1555.5,0.00015562,2]
[424850359,1781205048000,-1336.92,0.00015541,2]
[424850368,1781205048000,-1451.861569,0.00015761,2]
[424850358,1781205048000,-3000.0,0.00015541,2]
[424850357,1781205048000,-1408.61,0.00015541,2]
[424850362,1781205048000,-242.56011306,0.00015661,2]
[424850364,1781205048000,-1042.1105971,0.00015761,2]
[424850363,1781205048000,-489.44051512,0.00015754,2]
[424850342,1781205048000,-736.0,0.00015019,2]
[424850356,1781205048000,-3000.0,0.00015541,2]
[424850340,1781205048000,-1451.861569,0.00015,2]
[424850315,1781205048000,-500.0,0.00014989,2]
[424850339,1781205048000,-1451.861569,0.00015,2]
[424850370,1781205048000,-1451.861569,0.00015761,2]
[424850317,1781205048000,-234.25497419,0.0001499,2]
[424850318,1781205048000,-234.25497419,0.0001499,2]
[424850316,1781205048000,-500.0,0.00014989,2]
[424850319,1781205048000,-151.0,0.00014997,2]
[424850321,1781205048000,-1058.43926763,0.00014999,5]
[424850322,1781205048000,-1058.4392676,0.00014999,5]
[424850320,1781205048000,-1066.81128947,0.00014999,5]
[424850323,1781205048000,-2000.0,0.00014999,2]
[424850324,1781205048000,-5223636.24169441,0.00015,2]
[424850325,1781205048000,-4473777.11336695,0.00015,2]
[424850337,1781205048000,-1451.861569,0.00015,2]
[424850330,1781205048000,-151.0,0.00015,2]
[424850327,1781205048000,-860.78,0.00015,2]
[424850329,1781205048000,-151.0,0.00015,2]
[424850328,1781205048000,-358.66,0.00015,2]
[424850331,1781205048000,-151.0,0.00015,2]
[424850333,1781205048000,-1451.861569,0.00015,2]
[424850332,1781205048000,-1451.861569,0.00015,2]
[424850335,1781205048000,-1451.861569,0.00015,2]
[424850334,1781205048000,-1451.861569,0.00015,2]
[424850336,1781205048000,-152.603067,0.00015,2]
[424850338,1781205048000,-1451.861569,0.00015,2]
[424850341,1781205048000,-1500.0,0.00015014,2]
[424850326,1781205048000,-301.32,0.00015,2]
[424850365,1781205048000,-2175652.2649035,0.00015761,2]
[424850355,1781205048000,-3000.0,0.00015541,2]
[424850366,1781205048000,-14460.9906828,0.00015761,2]
[424850401,1781205048000,-500.0,0.00015864,2]
[424850402,1781205048000,-500.0,0.00015864,2]
[424850404,1781205048000,-500.0,0.00015864,2]
[424850405,1781205048000,-500.0,0.00015864,2]
[424850398,1781205048000,-500.0,0.00015864,2]
[424850400,1781205048000,-500.0,0.00015864,2]
[424850403,1781205048000,-500.0,0.00015864,2]
[424850406,1781205048000,-500.0,0.00015864,2]
[424850407,1781205048000,-500.0,0.00015864,2]
[424850414,1781205048000,-500.0,0.00015864,2]
[424850415,1781205048000,-500.0,0.00015864,2]
[424850399,1781205048000,-500.0,0.00015864,2]
[424850408,1781205048000,-500.0,0.00015864,2]
[424850410,1781205048000,-500.0,0.00015864,2]
[424850412,1781205048000,-500.0,0.00015864,2]
[424850411,1781205048000,-500.0,0.00015864,2]
[424850413,1781205048000,-500.0,0.00015864,2]
[424850417,1781205048000,-500.0,0.00015864,2]
[424850419,1781205048000,-651.56,0.00015864,2]
[424850422,1781205048000,-651.56,0.00015864,2]
[424850420,1781205048000,-651.56,0.00015864,2]
[424850418,1781205048000,-651.56,0.00015864,2]
[424850421,1781205048000,-651.56,0.00015864,2]
[424850369,1781205048000,-1451.861569,0.00015761,2]
[424850409,1781205048000,-500.0,0.00015864,2]
[424850397,1781205048000,-520.28473035,0.00015864,2]
[424850416,1781205048000,-500.0,0.00015864,2]
[424850392,1781205048000,-567.54,0.00015864,2]
[424850396,1781205048000,-500.0,0.00015864,2]
[424850371,1781205048000,-1451.861569,0.00015761,2]
[424850367,1781205048000,-508.5708689,0.00015761,2]
[424850373,1781205048000,-151.0,0.00015761,2]
[424850375,1781205048000,-153.52,0.00015829,2]
[424850374,1781205048000,-150.0,0.00015803,2]
[424850376,1781205048000,-152.0,0.00015832,2]
[424850377,1781205048000,-151.0,0.00015832,2]
[424850383,1781205048000,-500.0,0.00015864,2]
[424850382,1781205048000,-500.0,0.00015864,2]
[424850381,1781205048000,-500.0,0.00015864,2]
[424850380,1781205048000,-500.0,0.00015864,2]
[424850372,1781205048000,-151.0,0.00015761,2]
[424850393,1781205048000,-567.54,0.00015864,2]
[424850379,1781205048000,-500.0,0.00015849,2]